Cogmind - Beta 15 @@@ ROGUE MODE // 2025.05.15 @ 16:51:03 Player: G4-R3D Result: Destroyed by G-47 Trooper with Particle Gun Performance ------------- Evolutions (0) 0 Regions Visited (2) 400 Robots Destroyed (9) 45 Value Destroyed (111) 111 Prototype IDs (2) 40 Alien Tech Used (0) 0 Bonus (0) 0 TOTAL SCORE: 596 Bonus ------- None Cogmind --------- Core Integrity 0/250 Matter 294/300 Energy 100/100 System Corruption 3% Temperature Cool (9) Movement Core (150) Ox2 Location -10/Mines Parts ------- > --- POWER (1) -------- (None) > --- PROPULSION (2) --- (None) > --- UTILITY (2) ------ Small Storage Unit Targeting Computer > --- WEAPON (2) ------- Flail > --- INVENTORY (8) ---- Improved Ion Engine Structural Scanner Structural Scanner Assault Rifle Flak Cannon Flail Peak State ------------ > --- POWER ------------ (None) > --- PROPULSION ------- Flight Unit Surge Thruster > --- UTILITY ---------- Small Storage Unit Targeting Computer > --- WEAPON ----------- Flak Cannon Flail > --- INVENTORY -------- Improved Ion Engine Flight Unit Structural Scanner Structural Scanner Assault Rifle Light Assault Rifle Flail [Rating: 11] Favorites ----------- Power None Propulsion Flight Unit Treads Improved Treads Flight Unit Flight Unit Utility Small Storage Unit Device Structural Scanner Storage Small Storage Unit Processor Targeting Computer Weapon Flail Ballistic Gun Light Assault Rifle Ballistic Cannon Flak Cannon Impact Weapon Flail Build | -11 -10 -10 ------- Run | Yrd Mat Min Slots Evolved . | . . . Power . | . . . Propulsion . | . . . Utility . | . . . Weapon . | . . . Parts Attached 17 | 2 8 7 Power . | . . . Engine . | . . . Core . | . . . Reactor . | . . . Propulsion 10 | . 5 5 Treads 3 | . 3 . Leg . | . . . Wheel . | . . . Hover . | . . . Flight 7 | . 2 5 Utility 3 | . 2 1 Device 1 | . 1 . Storage 1 | . 1 . Processor 1 | . . 1 Hackware . | . . . Protection . | . . . Artifact . | . . . Weapon 4 | 2 1 1 Energy Gun . | . . . Energy Cannon . | . . . Ballistic Gun 2 | 2 . . Ballistic Cannon 1 | . . 1 Launcher . | . . . Special Weapon . | . . . Impact Weapon 1 | . 1 . Slashing Weapon . | . . . Piercing Weapon . | . . . Special Melee Weapon . | . . . Unidentified Prototypes . | . . . Corrupted Parts 1 | . . 1 System Corruption 3 | . . 3 Parts Lost 6 | . . 6 Power . | . . . Propulsion 6 | . . 6 Utility . | . . . Weapon . | . . . Highest Loss Streak 3 | . . 3 To Critical Strikes . | . . . Average Backups 5 | . 2 7 Power . | . . 1 Propulsion . | . . 1 Utility 1 | . . 1 Weapon 2 | . 1 3 Tool/Special . | . . . Unused Backups 3 | . . 3 Power 1 | . . 1 Propulsion . | . . . Utility 1 | . . 1 Weapon 1 | . . 1 Tool/Special . | . . . Average Slot Usage (%) 61 | . 51 66 Treads 2 | . 6 . Flight 19 | . 12 23 Device 1 | . 3 1 Storage 10 | . 5 14 Processor 7 | . . 11 Ballistic Gun 4 | . 14 . Impact Weapon 12 | . 11 14 Peak Build Rating 11 | 2 7 11 Average Rating 6 | 1 4 7 On Entrance 2 | . 2 6 Naked Turns . | . . . Heaviest Build 13 | 3 8 13 Greatest Support 46 | 3 46 8 Greatest Overweight (x) 1 | . . 1 Average Overweight (x) . | . . . Largest Inventory Capacity 8 | 5 8 8 Average Capacity 7 | 5 6 8 Most Carried 8 | . 6 8 Average Carried 5 | . 3 7 Final Capacity 8 | 5 8 8 Final Carried 6 | . 6 6 Class Distribution -------------------- 100% | Mutant Dominant Class ---------------- Mutant | -10/Materials Mutant | -10/Mines Resources | -11 -10 -10 ----------- Run | Yrd Mat Min Matter Collected 455 | 220 41 194 Remotely . | . . . Salvage Created 113 | . 26 87 Parts 16 | . 3 13 Haulers Intercepted . | . . . Recyclers Shooed . | . . . Parts Field Recycled . | . . . Retrieved Matter . | . . . Parts Self-Destructed . | . . . Prevented . | . . . Kills | -11 -10 -10 ------- Run | Yrd Mat Min Combat Hostiles Destroyed 8 | . 2 6 Melee 2 | . . 2 Guns 2 | . 2 . Cannons 3 | . . 3 Classes Destroyed 3 | . 1 2 Tunneler 1 | . . 1 Swarmer 7 | . 2 5 Grunt 1 | . . 1 Best Kill Streak 4 | . 2 4 Combat Bots Only 3 | . 2 3 Max Kills in Single Turn 2 | . 1 2 Gunslinging . | . . . Exploded . | . . . Melee 1 | . . 1 Uniques/NPCs Destroyed . | . . . Combat | -11 -10 -10 -------- Run | Yrd Mat Min Hostile Shots Fired 78 | . 25 53 Missed 31 | . 14 17 Hits 47 | . 11 36 Projectile 47 | . 11 36 Critical Strikes 1 | . . 1 Damage Taken 562 | . 90 472 Core 260 | . 19 241 Absorbed by Shields . | . . . Core Remaining (%) 100 | 100 . . Volleys Fired 16 | . 7 9 Largest 1 | . 1 1 Hottest 37 | . 20 37 Shots Fired 16 | . 7 9 Gun 7 | . 7 . Cannon 9 | . . 9 Launcher . | . . . Special . | . . . Kinetic 16 | . 7 9 Thermal . | . . . Explosive . | . . . Electromagnetic . | . . . Robot Hit Streak 6 | . 2 6 Robot Miss Streak 5 | . 3 5 Penetration Max . | . . . Secondary Targets . | . . . Shots Hit Robots 21 | . 5 16 Core Hits 12 | . 2 10 Critical Kills 1 | . . 1 Critical Parts Destroyed 1 | . . 1 Critical Strikes 2 | . . 2 Smash 2 | . . 2 Melee Attacks 16 | . 3 13 Impact 16 | . 3 13 Slashing . | . . . Piercing . | . . . Sneak Attacks 1 | . . 1 Combat Hostiles 1 | . . 1 Follow-up Attacks . | . . . Damage Inflicted 416 | . 58 358 Guns 33 | . 33 . Cannons 130 | . . 130 Explosions . | . . . Melee 253 | . 25 228 Ramming . | . . . Kinetic 163 | . 33 130 Thermal . | . . . Explosive . | . . . Electromagnetic . | . . . Impact 253 | . 25 228 Slashing . | . . . Piercing . | . . . Highest Corruption 3 | . . 3 Average Corruption 3 | . . 3 Corruption Purged . | . . . Corruption Blocked . | . . . Effects 1 | . . 1 Data Loss (minor) 1 | . . 1 Overload Shots . | . . . Overflow Damage 30 | . . 30 Projectiles . | . . . Explosions . | . . . Melee 30 | . . 30 Knockbacks 6 | . 1 5 Impact 1 | . 1 . Kinetic 4 | . . 4 Secondary 1 | . . 1 Self-Inflicted Damage . | . . . Shots . | . . . Rammed . | . . . Targets Rammed . | . . . Kicked . | . . . Crushed . | . . . Highest Temperature 4 | . . 4 Average Temperature 4 | . . 4 Received Heat Transfer 207 | . . 207 Siege Activations . | . . . Martial Activations . | . . . Shielding Activations . | . . . Robots Disrupted . | . . . Combat Hostiles . | . . . Robots Corrupted 1 | . . 1 Combat Hostiles 1 | . . 1 Parts Fried . | . . . Impact Corruptions 3 | . . 3 Robots Melted . | . . . Combat Hostiles . | . . . Parts Melted . | . . . Heat Transferred . | . . . Parts Sabotaged . | . . . Parts Stolen . | . . . Parts Stripped . | . . . Power Chain Reactions . | . . . Alert | -11 -10 -10 ------- Run | Yrd Mat Min Maximum Alert Level . | . . . Low Security (%) 100 | 100 100 100 Level 1 . | . . . Level 2 . | . . . Level 3 . | . . . Level 4 . | . . . Level 5 . | . . . High Security . | . . . Max Security . | . . . Peak Influence 137 | . 40 137 Initial 6 | . . 6 Average 51 | . 17 71 Influence Increases 328 | . 56 272 Destroy 0b10 Robot/C 160 | . 40 120 Destroy 0b10 Robot/NC 5 | . . 5 Destroy Leader 20 | . 10 10 Successful Hack 5 | . 5 . Destroy Structure 3 | . 1 2 Lose Combat Pursuer 135 | . . 135 Influence Decreases 206 | . 40 166 Entered New Map 10 | . . 10 Time Decay 140 | . 40 100 Lost Part 56 | . . 56 Squads Dispatched . | . . . Investigation . | . . . Extermination . | . . . Reinforcement . | . . . Assault . | . . . Garrison . | . . . Intercept . | . . . Searches Triggered . | . . . Construction Impeded . | . . . Haulers Reinforced . | . . . Active Scanning Responses . | . . . Cargo Convoy Interrupts . | . . . Stealth | -11 -10 -10 --------- Run | Yrd Mat Min Distress Signals . | . . . Communications Jammed . | . . . Distress Signals . | . . . Times Spotted 23 | . 8 15 Peak Tracking Total 6 | . 6 4 Tactical Retreats 5 | . . 5 Traps | -11 -10 -10 ------- Run | Yrd Mat Min Traps Triggered 1 | . . 1 Indirectly . | . . . Trap Hack Attempts . | . . . Triggered . | . . . Disarmed . | . . . Reprogrammed . | . . . Reused . | . . . Traps Extracted . | . . . Installed . | . . . Triggered . | . . . Machines | -11 -10 -10 ---------- Run | Yrd Mat Min Machines Disabled . | . . . Max in Single Turn . | . . . Machines Repaired . | . . . Machines Dismantled . | . . . Machines Sabotaged . | . . . Overloaded Fab Kills . | . . . Hacking | -11 -10 -10 --------- Run | Yrd Mat Min Machines Accessed 4 | . 3 1 Terminals 2 | . 2 . Fabricators . | . . . Repair Stations 1 | . 1 . Recycling Units . | . . . Scanalyzers . | . . . Garrison Access . | . . . Total Hacks 12 | . 11 1 Successful 8 | . 7 1 Failed 4 | . 4 . Catastrophic 1 | . 1 . Database Lockouts . | . . . Manual 7 | . 7 . Terminals 10 | . 10 . Fabricators . | . . . Repair Stations 1 | . 1 . Recycling Units . | . . . Scanalyzers . | . . . Garrison Access . | . . . Terminal Hacks 6 | . 5 1 Prototype ID Bank 1 | . 1 . Open Door 1 | . . 1 Branch Access Points 1 | . 1 . Terminal Index 1 | . 1 . Zone Layout 2 | . 2 . Fabricator Hacks . | . . . Repair Station Hacks . | . . . Recycling Unit Hacks . | . . . Scanalyzer . | . . . Garrison Access Hacks . | . . . Unauthorized Hacks 2 | . 2 . Terminals 1 | . 1 . Botnet 1 | . 1 . Fabricators . | . . . Repair Stations 1 | . 1 . Mechanics 1 | . 1 . Recycling Units . | . . . Scanalyzers . | . . . Garrison Access . | . . . Data Cores Recovered . | . . . Used . | . . . Hacking Detections 2 | . 2 . Full Trace Events . | . . . Feedback Events . | . . . Feedback Blocked . | . . . Robot Schematics Acquired . | . . . Robots Built . | . . . Authchips . | . . . Time . | . . . Total Robot Build Rating . | . . . Part Schematics Acquired . | . . . Parts Built . | . . . Authchips . | . . . Time . | . . . Total Part Build Rating . | . . . Parts Repaired . | . . . Time . | . . . Parts Recycled . | . . . Recycled Matter . | . . . Retrieved Matter . | . . . Retrieved Components . | . . . Parts Scanalyzed . | . . . Part Schematics Acquired . | . . . Parts Damaged . | . . . Bothacking | -11 -10 -10 ------------ Run | Yrd Mat Min Used RIF Installer . | . . . Robots Hacked . | . . . Non-combat . | . . . Combat . | . . . Robot Hacks Applied . | . . . Relay Couplers Released . | . . . Fabnet Peak Effective % . | . . . Robots Rewired . | . . . Allies Hacked . | . . . Hacks Repelled . | . . . Allies | -11 -10 -10 -------- Run | Yrd Mat Min Total Allies . | . . . Largest Group . | . . . Highest-Rated Group . | . . . Highest-Rated Ally . | . . . Total Orders . | . . . Ally Attacks . | . . . Total Damage . | . . . Kills . | . . . Allies Corrupted . | . . . Allies Melted . | . . . Intel | -11 -10 -10 ------- Run | Yrd Mat Min Active Infowar (turns) 38 | . 29 9 Structural 38 | . 29 9 Robot Analysis Total . | . . . Derelict Logs Recovered 1 | . . 1 Drone Launches . | . . . Drone Recoveries . | . . . Exploration | -11 -10 -10 ------------- Run | Yrd Mat Min Turns Passed 400 | 17 126 257 Spaces Moved 666 | 28 197 441 Core 99 | 28 71 . Treads 3 | . 3 . Legs . | . . . Wheels . | . . . Hover . | . . . Flight 564 | . 123 441 Fastest Speed 34 | 50 37 34 Average Speed 41 | 50 43 40 Slowest Speed 160 | 50 160 120 Overloaded Moves . | . . . Propulsion Burnouts . | . . . Robots Hopped 7 | . . 7 Potential Cave-ins . | . . . Cave-ins Triggered . | . . . Exploration Rate (%) 38 | 4 34 76 Regions Visited 2 Branch Regions 1 Pre-discovered Areas . | . . . Known Exits Taken 1 | . 1 . Unknown Exits Taken 1 | 1 . . Scrap Searched 1 | . . 1 Spaces Dug 3 | . 1 2 Terrain Destroyed 3 | . 1 2 Melee 3 | . 1 2 Projectile . | . . . AOE . | . . . Terrain Rammed . | . . . Walls Destroyed . | . . . Machines Disabled . | . . . Actions | -11 -10 -10 --------- Run | Yrd Mat Min Total 737 | 29 224 484 Wait 7 | . 1 6 Move 650 | 27 196 427 Hop 7 | . . 7 Pick Up 6 | . 4 2 Fast Attach 14 | 2 7 5 Attach 4 | . . 4 Detach 4 | . 2 2 Swap 5 | . 1 4 Drop 8 | . 3 5 Fire 16 | . 7 9 Melee 16 | . 3 13 Ram . | . . . Kick . | . . . Crush . | . . . Escape Stasis . | . . . Rewire . | . . . Trap . | . . . Miscellaneous . | . . . Route ------- -11/Scrapyard -10/Materials (discovered 3 exits: [Mat] / *Min x2) -10/Mines (discovered 2 exits: [*Mat x2]) History --------- Turn | Location | Event 4 | -11/Scrapyard | Discovered new exit (range 16) 18 | -11/Scrapyard | Entered Materials 125 | -10/Materials | Discovered new exit (range 18) 125 | -10/Materials | Identified exit to Mines 144 | -10/Materials | Entered Mines 147 | -10/Mines | Met a Derelict who couldn't figure out how to use a Trap Extractor 166 | -10/Mines | Found a hidden stash of uninstalled traps 223 | -10/Mines | Learned 4 Materials zone layouts 316 | -10/Mines | Discovered new exit (range 10) 320 | -10/Mines | Discovered new exit (range 8) 332 | -10/Mines | Build established: Mutant 383 | -10/Mines | Core integrity fell below 50% 396 | -10/Mines | Core integrity fell below 20% 401 | -10/Mines | Destroyed by G-47 Trooper with Particle Gun Last Messages --------------- 00310_ Acquired 17 matter. 00315_ K-01 Serf cleans the Seismic Survey Station. 00316_ EXIT=FOUND 00317_ Acquired 65 matter. 00317_ Acquired 17 matter. 00320_ EXIT=FOUND 00343_ S-10 Pest suffers critical hit (Smash). 00343_ Destroyed Flight Unit. 00343_ S-10 Pest system corrupted by crushing effect. 00344_ S-10 Pest system terminally corrupted. 00357_ Flight Unit destroyed. 00359_ Surge Thruster destroyed. 00380_ Flight Unit destroyed. 00391_ Destroyed Heat Sink. 00391_ G-34 Mercenary system corrupted by crushing effect. 00397_ Critical hit (Burn: +37). 00399_ G-34 Mercenary destroyed. Map ----- +----------------------------------------------------+ | ####### #### ##????????# # | | ## !### ###????????# ## | | ## ] /# ##????????## #? | | ## ! ###### ##??####?## ## | | ## =! ###### #### ### # | | # #### ##* | | ## ### #### | | ## #### ### ##??# | | ##### #### ######[ | | #### ###### ####### | | ??### #####?## & ##?????# #### | | ??##### ####????# & &#??????# #??? | | ???##########?????## #?????# #??? | | ?????#######???????## #????# #??? | | ????????????????????## #????# #??? | | ?????????????????????## ##????#=#??? | | ??????????????????###?####????## #### | | ???????????????????"" ???????# ! * | | ??????????????????""" ??????# """ | | ????????????????# """ ###### """ | | ????????????????# """ | | ????????????????# < ## ### | | ????????????????# ?????# #?# < | | ????????????????#?????????# #?# | | ?????????#####????????????# #?####### | | ?????????# @############## #???????? | | ?????????# =%[ #???????? | | ?????????# g############ ####???????? | | ????????## #??????????# #??????????? | | ???????## #??????????# #??????????? | | ??????## ####???????# #??????????? | | ??????# #???????# #??????????? | | ?????# !! #???????# #??????????? | | ????# ! #???????# #??????????? | | ????# ! #???????# ############ | | ????## !! #???????# | | ?????#### #???????############## | | ????????########????????????????????? | | ????????????????????????????????????? | | ????????????????????????????????????? | | ????????????????????????????????????? | | | | | | | | | | | | | | | | | | | +----------------------------------------------------+ Best States ------------- Heat Dissipation 25 Energy Generation 5 Energy Capacity 100 Matter Stores 300 Matter Capacity 300 Sight Range 16 Terrain Scan Density 10 Evasion (%) 63 Targeting Accuracy 5 Recoil Reduction 2 Item Schematics ----------------- None Robot Schematics ------------------ None Fabricated ------------ Nothing Repaired ---------- Nothing Alien Tech Used ----------------- None Achievements -------------- None Challenges ------------ None Game ------ Seed TeleporterOmegaBotcube Manual? 0 Play Time 00:09:08 Cumulative 170.8 hours Start 2025.05.15 @ 16:41:55 End 2025.05.15 @ 16:51:03 Sessions 1 Manual Loads 0 Difficulty Rogue Special Mode None Game No. 90 Rogue 90 Adventurer 0 Explorer 0 Win Type - Total 11 Types 5/0/4/0/2/0/0/0/0/0 Lore% 74 Gallery% 62 Achievement% 62 Wizard Run 0 Options --------- Layout 1 ASCII 0 Keyboard 0 Movement Numpad Keybinds 0 Fullscreen 1 Font 24/Smallcaps Map View 50x35 Zoom Use 0% Tactical HUD 1 Map Filters NONE Filters NONE Steam 1 RUN: 0436533b-5ab2-4ea5-a7ef-5e64a52ea0c6